Cogmind - Beta 14 *** ADVENTURER MODE // 2025.03.15 @ 12:33:46 Player: EN-G1N Result: Self-destructed Performance ------------- Evolutions (4) 2000 Regions Visited (5) 1000 Robots Destroyed (107) 535 Value Destroyed (4115) 4115 Prototype IDs (16) 320 Alien Tech Used (0) 0 Bonus (0) 0 TOTAL SCORE: 7970 Bonus ------- None Cogmind --------- Core Integrity 711/850 Matter 270/300 Energy 310/310 System Corruption 6% Temperature Cool (0) Movement Treading (160) Location -6/Factory Parts ------- > --- POWER (1) -------- Heavy Deuterium Engine > --- PROPULSION (4) --- Medium Treads Medium Treads Medium Treads Medium Treads > --- UTILITY (8) ------ Huge Storage Unit Enhanced Optical Array Energy Filter Weapon Cycler Improved Medium Armor Plating Hacking Suite > --- WEAPON (2) ------- Plasma Rifle Thermic Laser > --- INVENTORY (25) --- Light Deuterium Engine Improved Deuterium Engine Fission Core Energy Well (350) Large Matter Pod (150) Visual Processing Unit Advanced Visual Processing Unit Improved Signal Interpreter Melee Analysis Suite Core Analyzer Improved Particle Charger Improved Particle Charger Reactive Plating Thermal Shield Hacking Suite Hacking Suite Component Analysis Suite Proton Cannon Proton Cannon Proton Cannon Missile Launcher Peak State ------------ > --- POWER ------------ Heavy Deuterium Engine > --- PROPULSION ------- Medium Treads Medium Treads Improved Medium Treads Improved Medium Treads > --- UTILITY ---------- Huge Storage Unit Enhanced Optical Array Energy Filter Weapon Cycler Hardened Light Armor Plating Improved Medium Armor Plating Layered Medium Armor Plating Hacking Suite > --- WEAPON ----------- Plasma Rifle Thermic Laser > --- INVENTORY -------- Light Deuterium Engine Improved Deuterium Engine Fission Core Medium Treads Medium Treads Energy Well Large Matter Pod Visual Processing Unit Advanced Visual Processing Unit Improved Signal Interpreter Melee Analysis Suite Core Analyzer Improved Particle Charger Reactive Plating Thermal Shield Hacking Suite Hacking Suite Component Analysis Suite Proton Cannon Proton Cannon Proton Cannon Missile Launcher [Rating: 69] Favorites ----------- Power Heavy Deuterium Engine Engine Heavy Deuterium Engine Power Core Light Nuclear Core Propulsion Medium Treads Treads Medium Treads Leg Aluminum Leg Wheel Armored Wheel Utility Huge Storage Unit Device Improved Heat Sink Storage Huge Storage Unit Processor Advanced Visual Processing Unit Hackware Hacking Suite Protection Light Armor Plating Weapon Particle Cannon Energy Gun Beam Rifle Energy Cannon Particle Cannon Ballistic Gun Flak Gun Build | -11 -10 -9 -8 -7 -6 ------- Run | Yrd Mat Mat Mat Fac Fac Slots Evolved 8 | . . 2 2 2 2 Power . | . . . . . . Propulsion 2 | . . . . . 2 Utility 6 | . . 2 2 2 . Weapon . | . . . . . . Parts Attached 96 | 7 12 10 21 22 24 Power 12 | 1 3 2 3 3 . Engine 11 | 1 2 2 3 3 . Core 1 | . 1 . . . . Reactor . | . . . . . . Propulsion 27 | 2 5 2 4 7 7 Treads 10 | . . . . 3 7 Leg 5 | 2 3 . . . . Wheel 12 | . 2 2 4 4 . Hover . | . . . . . . Flight . | . . . . . . Utility 36 | 2 2 4 9 10 9 Device 16 | 1 . 3 3 4 5 Storage 3 | 1 2 . . . . Processor 4 | . . 1 1 1 1 Hackware 1 | . . . 1 . . Protection 12 | . . . 4 5 3 Artifact . | . . . . . . Weapon 21 | 2 2 2 5 2 8 Energy Gun 7 | . . . 4 . 3 Energy Cannon 9 | . 2 2 . . 5 Ballistic Gun 5 | 2 . . 1 2 . Ballistic Cannon . | . . . . . . Launcher . | . . . . . . Special Weapon . | . . . . . . Impact Weapon . | . . . . . . Slashing Weapon . | . . . . . . Piercing Weapon . | . . . . . . Special Melee Weapon . | . . . . . . Unidentified Prototypes . | . . . . . . Parts Lost 18 | . 2 3 . 6 7 Power 2 | . 2 . . . . Propulsion 6 | . . 2 . 2 2 Utility 8 | . . . . 4 4 Weapon 2 | . . 1 . . 1 Highest Loss Streak 3 | . 1 2 . 2 3 To Critical Strikes . | . . . . . . Average Slot Usage (%) 98 | . 99 94 98 99 99 Engine 7 | . 5 11 8 7 6 Core 1 | . 8 . . . . Treads 8 | . . . . 7 25 Leg 2 | . 19 . . . . Wheel 9 | . 8 18 18 6 . Device 17 | . 14 22 17 18 15 Storage 8 | . 14 11 9 7 6 Processor 7 | . . 11 9 9 6 Hackware 5 | . . . 9 7 6 Protection 10 | . . . 8 17 17 Energy Gun 4 | . . . 11 4 3 Energy Cannon 8 | . 21 21 2 . 5 Ballistic Gun 5 | . 6 . 4 10 3 Peak Build Rating 69 | 7 12 19 31 49 69 Average Rating 36 | 5 10 17 27 43 63 On Entrance 19 | . 7 12 19 31 49 Naked Turns . | . . . . . . Heaviest Build 131 | 14 96 97 98 122 131 Greatest Support 116 | 20 32 32 24 56 116 Greatest Overweight (x) 40 | 1 4 8 4 40 2 Average Overweight (x) 2 | . 1 4 3 3 . Largest Inventory Capacity 25 | 8 25 25 25 25 25 Average Capacity 23 | 7 14 25 25 25 25 Most Carried 25 | 5 16 25 25 25 25 Average Carried 20 | 2 9 20 23 22 23 Final Capacity 25 | 8 25 25 25 25 25 Final Carried 25 | 4 16 25 24 25 21 Class Distribution -------------------- 63% | Hacker-Mutant 16% | Mutant 13% | Scavenger-Mutant 6% | Hacker-Skirmisher Dominant Class ---------------- Mutant | -10/Materials Scavenger-Mutant | -9/Materials Hacker-Mutant | -8/Materials Hacker-Mutant | -7/Factory Hacker-Mutant | -6/Factory Resources | -11 -10 -9 -8 -7 -6 ----------- Run | Yrd Mat Mat Mat Fac Fac Matter Collected 2220 | 288 305 100 341 662 524 Remotely . | . . . . . . Salvage Created 4643 | 84 405 1073 1275 926 880 Parts 203 | 7 25 61 48 36 26 Haulers Intercepted . | . . . . . . Recyclers Shooed 2 | . . 1 . 1 . Parts Field Recycled . | . . . . . . Retrieved Matter . | . . . . . . Parts Self-Destructed . | . . . . . . Prevented . | . . . . . . Kills | -11 -10 -9 -8 -7 -6 ------- Run | Yrd Mat Mat Mat Fac Fac Combat Hostiles Destroyed 88 | . 12 20 24 19 13 Melee 1 | . . . . . 1 Guns 52 | . 7 . 21 19 5 Cannons 27 | . 4 19 2 . 2 AOE 1 | . . . . . 1 Classes Destroyed 12 | 2 4 4 . 1 1 Worker 3 | . 1 2 . . . Builder 1 | . . 1 . . . Tunneler 2 | 2 . . . . . Recycler 4 | 1 . . . 3 . Operator 2 | . . 1 . . 1 Watcher 7 | . 2 3 1 1 . Swarmer 7 | . 6 . . 1 . Grunt 49 | . 6 14 13 9 7 Duelist 3 | . . 1 1 1 . Sentry 21 | . . 5 10 4 2 Programmer 7 | . . . . 4 3 Behemoth 1 | . . . . . 1 Best Kill Streak 5 | 3 5 5 4 4 3 Combat Bots Only 5 | . 5 5 4 4 3 Max Kills in Single Turn 2 | 1 2 1 1 1 1 Gunslinging . | . . . . . . Exploded 1 | . . . . . 1 Melee 1 | . . . . . 1 Uniques/NPCs Destroyed . | . . . . . . Combat | -11 -10 -9 -8 -7 -6 -------- Run | Yrd Mat Mat Mat Fac Fac Hostile Shots Fired 633 | . 61 84 115 208 165 Missed 181 | . 9 18 31 72 51 Damage Taken 5165 | . 423 687 1018 1462 1575 Core 557 | . 46 90 163 119 139 Absorbed by Shields 124 | . . . . 124 . Ignored by Resistances 1629 | . 129 196 378 518 408 Regen/Repaired (Parts) 346 | . . 17 151 . 178 Core Remaining (%) 82 | 100 81 77 70 83 . Volleys Fired 298 | 8 37 57 82 52 62 Largest 2 | 2 2 2 2 2 2 Hottest 160 | 40 136 136 136 128 160 Shots Fired 574 | 16 74 111 164 104 105 Gun 356 | 16 42 . 146 104 48 Cannon 218 | . 32 111 18 . 57 Launcher . | . . . . . . Special . | . . . . . . Kinetic 166 | 16 42 . 46 62 . Thermal 351 | . 32 111 118 42 48 Explosive . | . . . . . . Electromagnetic 57 | . . . . . 57 Robot Hit Streak 35 | 7 30 32 35 30 24 Robot Miss Streak 3 | 1 1 1 2 3 2 Penetration Max . | . . . . . . Secondary Targets 4 | . 1 . 2 1 . Max Gunslinging Chain 1 | . 1 . 1 1 . Shots Hit Robots 490 | 11 58 85 147 99 90 Core Hits 253 | 5 21 29 59 108 31 Critical Kills 2 | . 1 1 . . . Critical Parts Destroyed . | . . . . . . Critical Strikes 24 | . 1 1 9 3 10 Burn 21 | . . . 9 3 9 Meltdown 2 | . 1 1 . . . Corrupt 1 | . . . . . 1 Melee Attacks . | . . . . . . Impact . | . . . . . . Slashing . | . . . . . . Piercing . | . . . . . . Sneak Attacks . | . . . . . . Combat Hostiles . | . . . . . . Follow-up Attacks . | . . . . . . Damage Inflicted 9536 | 115 895 1923 2356 2320 1927 Guns 5502 | 115 379 . 2046 2111 851 Cannons 3651 | . 495 1867 304 . 985 Explosions 195 | . . . . 143 52 Melee . | . . . . . . Ramming 188 | . 21 56 6 66 39 Kinetic 2473 | 115 379 . 596 1383 . Thermal 5747 | . 495 1867 1754 728 903 Explosive 143 | . . . . 143 . Electromagnetic 985 | . . . . . 985 Impact . | . . . . . . Slashing . | . . . . . . Piercing . | . . . . . . Highest Corruption 6 | . . . . 4 6 Average Corruption 2 | . . . . 2 3 Corruption Purged . | . . . . . . Corruption Blocked . | . . . . . . Effects 42 | . . . . 23 19 Message Errors 12 | . . . . 5 7 Matter Fused 11 | . . . . 3 8 Heat Flow Errors 3 | . . . . 2 1 Energy Discharges 6 | . . . . 5 1 Parts Fused 1 | . . . . 1 . Data Loss (minor) 3 | . . . . 3 . Data Loss (major) 2 | . . . . 2 . Misfires 1 | . . . . 1 . Alerts 1 | . . . . . 1 Weapon Failures 2 | . . . . 1 1 Overload Shots . | . . . . . . Overflow Damage 36 | . 19 . . 9 8 Projectiles 27 | . 19 . . . 8 Explosions . | . . . . . . Melee 9 | . . . . 9 . Knockbacks 2 | . . 1 . . 1 Impact 2 | . . 1 . . 1 Kinetic . | . . . . . . Secondary . | . . . . . . Self-Inflicted Damage 217 | . 8 26 3 180 . Shots 2 | . . . . 2 . Rammed 17 | . 2 5 3 3 4 Targets Rammed 19 | . 3 5 3 3 5 Kicked 1 | . 1 . . . . Crushed 1 | . . . . . 1 Highest Temperature 776 | . 506 348 204 259 776 Average Temperature 145 | . 135 101 48 32 237 Received Heat Transfer 2063 | . 240 411 639 320 453 Effects 54 | . 5 1 . . 48 Shutdowns 10 | . 2 . . . 8 Energy Bleed 9 | . 1 1 . . 7 Interference 11 | . 2 . . . 9 Matter Decay 6 | . . . . . 6 Short Circuit 2 | . . . . . 2 Damage (minor) 6 | . . . . . 6 Damage (major) 9 | . . . . . 9 Damage (core) 1 | . . . . . 1 Siege Activations . | . . . . . . Robots Corrupted 3 | . . . . . 3 Combat Hostiles 3 | . . . . . 3 Parts Fried 10 | . . . . . 10 Impact Corruptions 1 | . . . . 1 . Robots Melted 4 | . 1 1 1 . 1 Combat Hostiles 4 | . 1 1 1 . 1 Parts Melted 37 | . 2 10 16 2 7 Heat Transferred 13447 | . 814 3182 4662 1739 3050 Parts Sabotaged . | . . . . . . Parts Stolen . | . . . . . . Parts Stripped . | . . . . . . Power Chain Reactions 1 | . . . . . 1 Alert | -11 -10 -9 -8 -7 -6 ------- Run | Yrd Mat Mat Mat Fac Fac Peak Influence 385 | 15 228 304 385 228 172 Initial 109 | . 8 32 64 109 26 Average 112 | 6 80 156 229 88 39 Maximum Alert Level 1 | . 1 1 1 1 . Low Security (%) 80 | 100 99 67 38 93 100 Level 1 19 | . . 32 61 6 . Level 2 . | . . . . . . Level 3 . | . . . . . . Level 4 . | . . . . . . Level 5 . | . . . . . . High Security . | . . . . . . Max Security . | . . . . . . Squads Dispatched 24 | . 2 3 2 12 5 Investigation 7 | . 2 1 1 2 1 Extermination 9 | . . . . 5 4 Reinforcement 4 | . . 2 . 2 . Assault . | . . . . . . Garrison 4 | . . . 1 3 . Intercept . | . . . . . . Searches Triggered . | . . . . . . Construction Impeded . | . . . . . . Haulers Reinforced . | . . . . . . Active Scanning Responses . | . . . . . . Cargo Convoy Interrupts . | . . . . . . Stealth | -11 -10 -9 -8 -7 -6 --------- Run | Yrd Mat Mat Mat Fac Fac Distress Signals 6 | . 1 4 . 1 . Communications Jammed . | . . . . . . Distress Signals . | . . . . . . Times Spotted 151 | . 21 34 44 32 20 Peak Tracking Total 6 | . 5 6 5 4 4 Tactical Retreats 12 | . 2 2 5 1 2 Traps | -11 -10 -9 -8 -7 -6 ------- Run | Yrd Mat Mat Mat Fac Fac Traps Triggered 2 | . 1 . . 1 . Indirectly . | . . . . . . Trap Hack Attempts . | . . . . . . Triggered . | . . . . . . Disarmed 3 | . . . 3 . . Reprogrammed 4 | . . . 4 . . Reused . | . . . . . . Traps Extracted . | . . . . . . Installed . | . . . . . . Triggered . | . . . . . . Machines | -11 -10 -9 -8 -7 -6 ---------- Run | Yrd Mat Mat Mat Fac Fac Machines Disabled 4 | . 1 . . 2 1 Max in Single Turn 2 | . 1 . . 2 1 Garrison Access 1 | . . . . . 1 Machines Repaired . | . . . . . . Machines Dismantled . | . . . . . . Machines Sabotaged . | . . . . . . Overloaded Fab Kills . | . . . . . . Hacking | -11 -10 -9 -8 -7 -6 --------- Run | Yrd Mat Mat Mat Fac Fac Machines Accessed 37 | . 7 4 10 5 11 Terminals 29 | . 7 3 6 4 9 Fabricators . | . . . . . . Repair Stations 4 | . . 1 2 . 1 Recycling Units . | . . . . . . Scanalyzers 3 | . . . 2 1 . Garrison Access 1 | . . . . . 1 Total Hacks 108 | . 14 11 43 12 28 Successful 78 | . 9 7 32 10 20 Failed 30 | . 5 4 11 2 8 Catastrophic 1 | . 1 . . . . Database Lockouts . | . . . . . . Manual 32 | . 11 7 6 4 4 Terminals 74 | . 14 8 19 8 25 Fabricators . | . . . . . . Repair Stations 20 | . . 3 15 . 2 Recycling Units . | . . . . . . Scanalyzers 13 | . . . 9 4 . Garrison Access 1 | . . . . . 1 Terminal Hacks 34 | . 6 2 9 3 14 Record 8 | . . . . 2 6 Robot Analysis 7 | . 3 2 . 1 1 Prototype ID Bank 6 | . 1 . 4 . 1 Level Access Points 1 | . . . 1 . . Branch Access Points 1 | . . . 1 . . Emergency Access Points 1 | . . . . . 1 Alert Level 1 | . . . . . 1 Locate Traps 1 | . . . . . 1 Disarm Traps 1 | . . . 1 . . Reprogram Traps 1 | . . . 1 . . Dispatch Records 1 | . . . . . 1 Investigation Status 2 | . 1 . . . 1 Hauler Manifests 2 | . 1 . 1 . . Zone Layout 1 | . . . . . 1 Fabricator Hacks . | . . . . . . Repair Station Hacks 17 | . . 2 13 . 2 Scan Component 9 | . . 1 7 . 1 Repair 8 | . . 1 6 . 1 Recycling Unit Hacks . | . . . . . . Scanalyzer 11 | . . . 7 4 . Insert Component 6 | . . . 4 2 . Analyze 5 | . . . 3 2 . Garrison Access Hacks 1 | . . . . . 1 Seal Access 1 | . . . . . 1 Unauthorized Hacks 15 | . 3 3 3 3 3 Terminals 15 | . 3 3 3 3 3 Botnet 15 | . 3 3 3 3 3 Fabricators . | . . . . . . Repair Stations . | . . . . . . Recycling Units . | . . . . . . Scanalyzers . | . . . . . . Garrison Access . | . . . . . . Data Cores Recovered 2 | . . 1 . . 1 Used 1 | . . 1 . . . Hacking Detections 30 | . 4 3 9 4 10 Full Trace Events 9 | . 1 1 4 2 1 Feedback Events . | . . . . . . Feedback Blocked . | . . . . . . Robot Schematics Acquired . | . . . . . . Robots Built . | . . . . . . Authchips . | . . . . . . Time . | . . . . . . Total Robot Build Rating . | . . . . . . Part Schematics Acquired 4 | . . . 3 1 . Parts Built . | . . . . . . Authchips . | . . . . . . Time . | . . . . . . Total Part Build Rating . | . . . . . . Parts Repaired 8 | . . 1 6 . 1 Time 249 | . . 26 179 . 44 Parts Recycled . | . . . . . . Recycled Matter . | . . . . . . Retrieved Matter . | . . . . . . Retrieved Components . | . . . . . . Parts Scanalyzed 5 | . . . 3 2 . Part Schematics Acquired 4 | . . . 3 1 . Parts Damaged . | . . . . . . Bothacking | -11 -10 -9 -8 -7 -6 ------------ Run | Yrd Mat Mat Mat Fac Fac Used RIF Installer . | . . . . . . Robots Hacked . | . . . . . . Non-combat . | . . . . . . Combat . | . . . . . . Robot Hacks Applied . | . . . . . . Relay Couplers Released . | . . . . . . Fabnet Peak Effective % . | . . . . . . Robots Rewired . | . . . . . . Allies Hacked . | . . . . . . Hacks Repelled . | . . . . . . Allies | -11 -10 -9 -8 -7 -6 -------- Run | Yrd Mat Mat Mat Fac Fac Total Allies . | . . . . . . Largest Group . | . . . . . . Highest-Rated Group . | . . . . . . Highest-Rated Ally . | . . . . . . Total Orders . | . . . . . . Ally Attacks . | . . . . . . Total Damage . | . . . . . . Kills . | . . . . . . Allies Corrupted . | . . . . . . Allies Melted . | . . . . . . Intel | -11 -10 -9 -8 -7 -6 ------- Run | Yrd Mat Mat Mat Fac Fac Robot Analysis Total 7 | . 3 2 . 1 1 Derelict Logs Recovered . | . . . . . . Drone Launches . | . . . . . . Drone Recoveries . | . . . . . . Exploration | -11 -10 -9 -8 -7 -6 ------------- Run | Yrd Mat Mat Mat Fac Fac Turns Passed 8998 | 109 1106 1514 1753 2145 2371 Spaces Moved 3581 | 60 584 639 773 709 816 Core 9 | 8 . . . 1 . Treads 1098 | . . . . 282 816 Legs 419 | 52 367 . . . . Wheels 2055 | . 217 639 773 426 . Hover . | . . . . . . Flight . | . . . . . . Fastest Speed 50 | 50 120 140 135 150 160 Average Speed 185 | 115 150 165 145 223 238 Slowest Speed 2050 | 120 400 210 150 2050 320 Overloaded Moves . | . . . . . . Propulsion Burnouts . | . . . . . . Robots Hopped . | . . . . . . Cave-ins Triggered . | . . . . . . Exploration Rate (%) 44 | 6 89 51 70 25 26 Regions Visited 5 Branch Regions . Pre-discovered Areas . | . . . . . . Known Exits Taken 1 | . . . 1 . . Unknown Exits Taken 4 | 1 1 1 . 1 . Scrap Searched . | . . . . . . Spaces Dug . | . . . . . . Terrain Destroyed 29 | . . . . 21 8 Melee . | . . . . . . Projectile . | . . . . . . AOE 29 | . . . . 21 8 Terrain Rammed . | . . . . . . Walls Destroyed . | . . . . . . Machines Disabled . | . . . . . . Actions | -11 -10 -9 -8 -7 -6 --------- Run | Yrd Mat Mat Mat Fac Fac Total 5387 | 85 742 984 1245 1173 1158 Wait 1188 | . 71 245 324 342 206 Move 3576 | 59 583 638 772 708 816 Hop . | . . . . . . Pick Up 127 | 11 23 21 24 26 22 Fast Attach 6 | . . . 2 1 3 Attach 58 | 7 2 6 10 17 16 Detach 5 | . . 1 1 1 2 Swap 32 | . 10 4 9 4 5 Drop 76 | . 13 7 18 17 21 Fire 298 | 8 37 57 82 52 62 Melee . | . . . . . . Ram 12 | . 2 5 3 2 . Kick 1 | . 1 . . . . Crush 6 | . . . . 1 5 Escape Stasis 2 | . . . . 2 . Rewire . | . . . . . . Trap . | . . . . . . Miscellaneous . | . . . . . . Route ------- -11/Scrapyard -10/Materials (discovered 5 exits: *Mat x3 / [*Min x2]) -9/Materials (discovered 4 exits: *Mat x2 / [*Min] / [*Sto]) -8/Materials (discovered 3 exits: *Fac x3) -7/Factory -6/Factory (discovered 1 exit: [*Fac]) History --------- Turn | Location | Event 16 | -11/Scrapyard | Discovered new exit (range 15) 110 | -11/Scrapyard | Entered Materials 236 | -10/Materials | Discovered new exit (range 12) 313 | -10/Materials | Build established: Mutant 564 | -10/Materials | Discovered new exit (range 14) 721 | -10/Materials | Discovered new exit (range 13) 776 | -10/Materials | Discovered new exit (range 7) 1185 | -10/Materials | Discovered new exit (range 16) 1216 | -10/Materials | Entered another Materials area 1216 | -9/Materials | Evolved 2 slots: Utility x2 1820 | -9/Materials | Build established: Scavenger-Mutant 1903 | -9/Materials | Discovered new exit (range 4) 1963 | -9/Materials | Discovered new exit (range 18) 2105 | -9/Materials | Discovered new exit (range 14) 2310 | -9/Materials | Repaired Seismic Detector 2497 | -9/Materials | Discovered new exit (range 11) 2730 | -9/Materials | Entered another Materials area 2730 | -8/Materials | Evolved 2 slots: Utility x2 3036 | -8/Materials | Build established: Hacker-Mutant 3268 | -8/Materials | Repaired Arm. Wheel 3306 | -8/Materials | Repaired Lgt. Deuterium Engine 3307 | -8/Materials | Repaired Arm. Wheel 3307 | -8/Materials | Repaired Arm. Wheel 3333 | -8/Materials | Repaired Heat Sink 3611 | -8/Materials | Identified exit to Factory 4009 | -8/Materials | Repaired Reflective Plating 4394 | -8/Materials | Garrison activated, responded to threat 4483 | -8/Materials | Entered Factory 4483 | -7/Factory | Evolved 2 slots: Utility x2 4748 | -7/Factory | Garrison activated, responded to threat 4794 | -7/Factory | Build established: Hacker-Skirmisher 5370 | -7/Factory | Build established: Hacker-Mutant 6429 | -7/Factory | Discovered new exit (range 11) 6628 | -7/Factory | Entered another Factory area 6628 | -6/Factory | Evolved 2 slots: Propulsion x2 7752 | -6/Factory | Discovered new exit (range 15) 8045 | -6/Factory | Spotted B-75 Beast 8115 | -6/Factory | Destroyed B-75 Beast 8629 | -6/Factory | Repaired Med. Treads 8956 | -6/Factory | Lost 3 parts (1n2u) 8999 | -6/Factory | Self-destructed Last Messages --------------- shutdown. 08921_ Imp. Medium Treads destroyed. 08925_ Hrd. Light Armor Plating destroyed. 08925_ Lyr. Medium Armor Plating destroyed. 08926_ G-50 Soldier suffers critical hit (Burn). 08927_ G-50 Soldier critical meltdown. 08933_ Overheating: Energy bleed (-40). 08935_ G-50 Soldier overheating. 08937_ Power failure, Hvy. Deuterium Engine shutdown. 08938_ Carbon-fiber Leg melted. 08938_ G-50 Soldier destroyed. 08942_ Overheating: System interference. 08942_ Thermic Laser temporarily disabled. 08944_ Acquired 33 matter. 08954_ P-60 Hacker destroyed. 08990_ Dropped Med. Treads. 08992_ Acquired Med. Treads. 08993_ Dropped Broken Imp. Medium Treads. 08994_ BMXCV2DDYOUA:B8Z2YBH7FZI Map ----- +----------------------------------------------------+ | ???????????????????????# """""" # """ """ #??? | | ???????????????????????# """""" # """ """ #??? | | ???????????????????????# """""" # """ """ #??? | | ???????????????????????# = [ # ] %%#??? | | ????????????????#########+#############+#####+#### | | ????????????????# ! % | | ????????????????# ^ ^ | | ????????????????# = | | ????????????????# ^""" """ """ | | ????????????????# """ """ """^ | | ????????????????# #### T### """ """ """ !!! | | ????????????????# #?####### !!= | | ????????????????# #?/ # """ """ """ !! | | ????????????????# # # """ """ """ | | ????????????????# # """ # """ """ """ | | ????????????????# + """ # | | ????????????????# # """ # | | ??????########??# # ########### | | ??????# ?# #####+#########???# | | ??????# ?# # #???# | | ??????# # # """""" #???# | | ??????# # # """""" #???# ######## | | ??????# """" + # """""" #???# ???????? | | ??????# """" # # """""" #???# ?????### | | ??????# """" # # = #???#??????# | | ??????# """" ?# # @ """""" #??????????# # | | ??????#########?# # """""" #??????????# # | | ????????????????# # """""" #??????????# # | | ????????????????# # """"""%%[#??????????# # | | ????????????????# + m %| #??????????# # | | ????????????????# ###############??????????# # | | ????????????????# #????????????????????????# # | | ????????????????# #????????????????????????# # | | ????????????????# #????????????????????????# # | | ????????????????# #????????????????????????# # | | ????????????????# #????????????????????????# # | | ????????????????# #????????????????????????# | | ????????????????" #????????????????????????# # | | ???????????????"" #????????????????????????# # | | ?????????????? #????????????????????????# # | | ????????????? " " " #????????????????????????# # | | ????????????? " " " #????????????????????????# # | | ????????????? " " " #????????????????????????# # | | ????????????? " " " +????????????????????????# # | | ????????????? " " " [ ?????????????????????????# # | | ??????????????? " " ?????????????????????????# # | | ????????????????"?" ?????????????????????????# # | | ??????????????????" ??????????????????? | | ??????????????????" ??????????????????? | | ?????????????????? ????????????????????? """"" | +----------------------------------------------------+ Best States ------------- Heat Dissipation 51 Energy Generation 18 Energy Capacity 310 Matter Stores 300 Matter Capacity 300 Sight Range 22 Terrain Scan Range 16 Terrain Scan Density 110 Armor Coverage 600 Resistance: KI 40 Resistance: TH 30 Resistance: EX 20 Resistance: EM 20 Resistance: I 20 Resistance: S 20 Resistance: P 20 Weapon Cycling 15 Evasion (%) 55 Recoil Reduction 4 Matter Filtering 30 Energy Filtering 30 Particle Charging 20 Offensive Hacking 20 Item Schematics ----------------- Lgt. Deuterium Engine | -8/Materials | Scanalyzed Hacking Suite | -8/Materials | Scanalyzed Arm. Wheel | -8/Materials | Scanalyzed Reactive Plating | -7/Factory | Scanalyzed Robot Schematics ------------------ None Fabricated ------------ Nothing Alien Tech Used ----------------- None Achievements -------------- None Challenges ------------ None Game ------ Seed MultinovaFlightDriver Manual? 0 Play Time 01:42:08 Cumulative 36.0 hours Start 2025.03.14 @ 23:44:33 End 2025.03.15 @ 12:33:46 Sessions 3 Manual Loads 0 Difficulty Adventurer Special Mode None Game No. 36 Rogue 0 Adventurer 36 Explorer 0 Win Type - Total 0 Types 0/0/0/0/0/0/0/0/0 Lore% 29 Gallery% 30 Achievement% 25 Wizard Run 0 Options --------- Layout 1 ASCII 0 Keyboard 0 Movement Mouse Keybinds 0 Fullscreen 1 Font 24/Smallcaps Map View 50x35 Zoom Use 0% Tactical HUD 1 Map Filters NONE Filters NONE Steam 1 RUN: 119b9363-91d4-43fc-8a38-51ea55773ec2